bitfinex-derivatives/quotes_BTCF0:USTF0_20251103
["timestamp","ask_amount","ask_price","bid_price","bid_amount"]
[1762161494964,1.00341764,107790.0,107780.0,0.00906165]
[1762161495163,0.05586,107780.0,107770.0,0.04961676]
[1762161495355,0.59867576,107780.0,107770.0,0.04961676]
[1762161496367,0.59967576,107780.0,107770.0,0.04961676]
[1762161497266,0.05586,107770.0,107760.0,0.08249676]
[1762161497566,0.46822788,107770.0,107760.0,0.08249676]
[1762161497768,0.92003576,107770.0,107760.0,0.04961676]
[1762161498466,0.83302788,107770.0,107760.0,0.04961676]
[1762161499267,0.83302788,107770.0,107760.0,0.08249676]
[1762161499464,0.51166788,107770.0,107760.0,0.08249676]
[1762161499660,0.83306788,107770.0,107760.0,0.04961676]
[1762161500068,0.83406788,107770.0,107760.0,0.06605676]
[1762161500269,0.83406788,107770.0,107760.0,0.04961676]
[1762161500569,0.83306788,107770.0,107760.0,0.06605676]
[1762161500771,0.83406788,107770.0,107760.0,0.06605676]
[1762161501068,0.83806788,107770.0,107760.0,0.06605676]
[1762161501269,0.02154,107760.0,107750.0,0.61079745]
[1762161501574,0.02154,107760.0,107750.0,0.62723745]
[1762161501575,0.14686788,107760.0,107750.0,0.62723745]
[1762161502367,0.37726,107760.0,107750.0,0.62723745]
[1762161502670,0.37726,107760.0,107750.0,0.57762069]
[1762161502671,0.47326788,107760.0,107750.0,0.57762069]
[1762161503476,0.47426788,107760.0,107750.0,0.53441515]
[1762161504268,0.47426788,107760.0,107750.0,0.44340727]
[1762161504470,0.47426788,107760.0,107750.0,0.53441515]
[1762161504668,0.04923,107760.0,107750.0,0.66862897]
[1762161504869,0.006,107760.0,107750.0,0.72954573]
[1762161505678,0.006,107760.0,107750.0,0.63853785]
[1762161506063,0.006,107760.0,107750.0,0.72954573]
[1762161506273,0.0285,107760.0,107750.0,0.63853785]
[1762161506575,0.0285,107760.0,107750.0,0.72954573]
[1762161506775,0.03974532,107760.0,107750.0,0.72954573]
[1762161507672,0.03974532,107760.0,107750.0,0.63853785]
[1762161508677,0.03974532,107760.0,107750.0,0.72954573]
[1762161508867,0.01724532,107760.0,107750.0,0.72954573]
[1762161509878,0.006,107760.0,107750.0,1.05094573]
[1762161510074,0.05795,107780.0,107770.0,0.0941053]
[1762161510272,0.38031,107790.0,107780.0,0.0940967]
[1762161510477,0.4020633,107790.0,107780.0,0.54590458]
[1762161511076,0.4020633,107790.0,107780.0,0.63691246]
[1762161511280,0.07029351,107790.0,107780.0,0.63691246]
[1762161512068,0.07029351,107790.0,107780.0,0.4548967]
[1762161512278,0.08429351,107790.0,107780.0,0.4548967]
[1762161512478,0.08429351,107790.0,107780.0,0.63691246]
[1762161512679,0.08829351,107790.0,107780.0,0.63691246]
[1762161513881,0.08829351,107790.0,107780.0,0.54590458]
[1762161514480,0.1100538,107790.0,107780.0,0.54590458]
[1762161514675,0.08829351,107790.0,107780.0,0.54590458]
[1762161515480,0.08829351,107790.0,107780.0,0.4548967]
[1762161515681,0.08829351,107790.0,107780.0,0.54590458]
[1762161516282,0.11005828,107790.0,107780.0,0.63691246]
[1762161518581,0.11005828,107790.0,107780.0,0.54590458]
[1762161519279,0.20106616,107790.0,107780.0,0.54590458]
[1762161520273,0.20106616,107790.0,107780.0,0.4548967]
[1762161520476,0.20106616,107790.0,107780.0,0.54590458]
[1762161522076,0.20106616,107790.0,107780.0,0.4548967]
[1762161522383,0.20106616,107790.0,107780.0,0.54590458]
[1762161522584,0.11005828,107790.0,107780.0,0.54590458]
[1762161522976,0.09867477,107790.0,107780.0,0.63691246]
[1762161523677,0.03976477,107790.0,107780.0,0.4548967]
[1762161523883,0.03976477,107790.0,107780.0,0.63691246]
[1762161524286,0.09679477,107790.0,107780.0,0.63691246]
[1762161525980,0.09679477,107790.0,107780.0,0.4548967]
[1762161526187,0.09679477,107790.0,107780.0,0.54590458]
[1762161526484,0.18780265,107790.0,107780.0,0.54590458]
[1762161526682,0.09279477,107790.0,107780.0,0.54590458]
[1762161526879,0.17080265,107790.0,107780.0,0.54790458]
[1762161527080,0.08379477,107790.0,107780.0,0.55090458]
[1762161527587,0.17480265,107790.0,107780.0,0.55090458]
[1762161528190,0.08379477,107790.0,107780.0,0.54990458]
[1762161529085,0.08379477,107790.0,107780.0,0.54690458]
[1762161529293,0.08979477,107790.0,107780.0,0.55090458]
[1762161529891,0.10093467,107790.0,107780.0,0.55090458]
[1762161530683,0.08979477,107790.0,107780.0,0.55090458]
[1762161530886,0.08979477,107790.0,107780.0,0.64191246]
[1762161531191,0.10124692,107790.0,107780.0,0.64191246]
[1762161531392,0.10124692,107790.0,107780.0,0.4598967]
[1762161531685,0.08979477,107790.0,107780.0,0.64191246]
[1762161534491,0.08979477,107790.0,107780.0,0.4598967]
[1762161534692,0.08979477,107790.0,107780.0,0.64191246]
[1762161535281,0.06661477,107790.0,107780.0,0.64191246]
[1762161535686,0.08979477,107790.0,107780.0,0.64191246]
[1762161536293,0.11480863,107790.0,107780.0,0.64191246]
[1762161537403,0.11480863,107790.0,107780.0,0.55090458]
[1762161537699,0.11480863,107790.0,107780.0,0.64191246]
[1762161537999,0.11480863,107790.0,107780.0,0.55090458]
[1762161538297,0.09162863,107790.0,107780.0,0.55090458]
[1762161538489,0.11480863,107790.0,107780.0,0.64191246]
[1762161540390,0.11480863,107790.0,107780.0,0.4598967]
[1762161540699,0.11480863,107790.0,107780.0,0.55090458]
[1762161541690,0.23909934,107790.0,107780.0,0.3671]
[1762161541891,0.57488548,107790.0,107780.0,0.005]
[1762161542087,0.62477926,107790.0,107780.0,0.005]
[1762161542402,0.62477926,107790.0,107780.0,0.00565]
[1762161542699,0.62477926,107790.0,107780.0,0.005]
[1762161543396,0.56666147,107790.0,107780.0,0.005]
[1762161543591,0.64237906,107790.0,107780.0,0.005]
[1762161545805,0.73338694,107790.0,107780.0,0.005]
[1762161546299,0.64237906,107790.0,107780.0,0.005]
[1762161547097,0.55137118,107790.0,107780.0,0.005]
[1762161547306,0.64237906,107790.0,107780.0,0.0063]
[1762161547604,0.63237906,107790.0,107780.0,0.001]
[1762161547804,0.05703,107780.0,107770.0,0.18511298]
[1762161548103,0.07879477,107780.0,107770.0,0.09230788]
[1762161548305,0.07879477,107780.0,107770.0,0.18511318]
[1762161548510,0.16980265,107780.0,107770.0,0.09230788]
[1762161548805,0.16980265,107780.0,107770.0,0.18511318]
[1762161549009,0.17880265,107780.0,107770.0,0.18611318]
[1762161549308,0.17880265,107780.0,107770.0,0.0951053]
[1762161549504,0.17880265,107780.0,107770.0,0.18611318]
[1762161549807,0.17880265,107780.0,107770.0,0.09330788]
[1762161550009,0.17880265,107780.0,107770.0,0.18611318]
[1762161550205,0.17880265,107780.0,107770.0,0.45410788]
[1762161550511,0.08779477,107780.0,107770.0,0.45409135]
[1762161550701,0.08779477,107780.0,107770.0,0.3631]
[1762161551810,0.40903477,107780.0,107770.0,0.3631]
[1762161552210,0.40903477,107780.0,107770.0,0.4559053]
[1762161553301,0.08779477,107780.0,107770.0,0.4559053]
[1762161553505,0.40903477,107780.0,107770.0,0.4559053]
[1762161554411,0.40903477,107780.0,107770.0,0.3631]
[1762161555615,0.50002612,107780.0,107770.0,0.41199486]
[1762161555813,0.50002612,107780.0,107770.0,0.001]
[1762161556015,0.50002612,107780.0,107770.0,0.00165]
[1762161557015,0.50002612,107780.0,107770.0,0.0023]
[1762161557910,0.50002612,107780.0,107770.0,0.00165]
[1762161558112,0.50002612,107780.0,107770.0,0.001]
[1762161558608,0.83906135,107780.0,107770.0,0.001]
[1762161560019,0.86048921,107780.0,107770.0,0.001]
[1762161561720,0.86048921,107780.0,107770.0,0.00227059]
[1762161563020,0.05725,107770.0,107760.0,0.04954486]
[1762161563214,0.50904135,107770.0,107760.0,0.04954486]
[1762161564113,0.51304135,107770.0,107760.0,0.04954486]
[1762161564621,0.51304135,107770.0,107760.0,0.05054486]
[1762161564622,0.51404135,107770.0,107760.0,0.05054486]
[1762161569625,0.51404135,107770.0,107760.0,0.01554486]
[1762161570321,0.02296,107750.0,107740.0,0.15145231]
[1762161570522,0.05945,107730.0,107720.0,0.12565066]
[1762161570826,0.83244135,107730.0,107720.0,0.04274]
[1762161571135,0.83244135,107730.0,107710.0,0.3608]
[1762161571136,0.05945,107720.0,107710.0,0.40354]
[1762161571423,0.15050802,107720.0,107710.0,0.40354]
[1762161572022,0.16139786,107720.0,107710.0,0.40354]
[1762161572426,0.16239786,107720.0,107710.0,0.40354]
[1762161572626,0.16239786,107720.0,107710.0,0.4963971]
[1762161573129,0.16739786,107720.0,107710.0,0.40354]
[1762161573328,0.05945,107710.0,107700.0,0.04580392]
[1762161573520,0.15044135,107710.0,107700.0,0.13866962]
[1762161573721,0.47164135,107710.0,107700.0,0.13866962]
[1762161573923,0.47164135,107710.0,107700.0,0.04580392]
[1762161574431,0.47164135,107710.0,107700.0,0.13866972]
[1762161574628,0.38165,107710.0,107700.0,0.13866972]
[1762161574828,0.38565,107710.0,107700.0,0.13866972]
[1762161575033,0.38565,107710.0,107700.0,0.04580392]
[1762161575329,0.47664135,107710.0,107700.0,0.04580392]
[1762161575529,0.47668135,107710.0,107700.0,0.04580392]
[1762161576232,0.47668135,107710.0,107700.0,0.00306392]
[1762161578020,0.47668135,107710.0,107700.0,0.02420392]
[1762161578626,0.47668135,107710.0,107700.0,0.00306392]
[1762161579534,0.47668135,107710.0,107700.0,0.08576839]
[1762161580127,0.83748135,107710.0,107700.0,0.08576839]
[1762161580831,0.83748135,107710.0,107700.0,0.06922078]
[1762161581227,0.74649,107710.0,107700.0,0.06922078]
[1762161581429,0.83748135,107710.0,107700.0,0.06922078]
[1762161582333,0.83748135,107710.0,107700.0,0.00306392]
[1762161582539,0.83748135,107710.0,107700.0,0.06922078]
[1762161583240,0.83758643,107710.0,107700.0,0.06922078]
[1762161585235,0.83758643,107710.0,107700.0,0.00306392]
[1762161585941,0.83758643,107710.0,107700.0,0.06922078]
[1762161586332,0.83766643,107710.0,107700.0,0.06922078]
[1762161586539,0.51634643,107710.0,107700.0,0.06922078]
[1762161586735,0.74667508,107710.0,107700.0,0.09134078]
[1762161587041,0.83766643,107710.0,107700.0,0.11280078]
[1762161587234,0.74667508,107710.0,107700.0,0.11280078]
[1762161587435,0.83766643,107710.0,107700.0,0.04664392]
[1762161587636,0.83766643,107710.0,107700.0,0.02518392]
[1762161587936,0.83766643,107710.0,107700.0,0.00306392]
[1762161588135,0.83766643,107710.0,107700.0,3.92e-06]
[1762161588330,0.05824,107700.0,107690.0,0.06615686]
[1762161588532,0.05824,107690.0,107680.0,0.48721447]
[1762161588740,0.47065701,107690.0,107680.0,0.48721447]
[1762161590045,0.47065701,107690.0,107680.0,0.10495447]
[1762161590343,0.47665701,107690.0,107680.0,0.12641447]
[1762161590736,0.47665701,107690.0,107680.0,0.08270447]
[1762161591136,0.47665701,107690.0,107680.0,0.12641447]
[1762161591742,0.47665701,107690.0,107680.0,0.21929737]
[1762161591938,0.47665701,107690.0,107680.0,0.1365929]
[1762161592837,0.47665701,107690.0,107680.0,0.1365928]
[1762161593342,0.38566566,107690.0,107680.0,0.1365928]
[1762161593544,0.38566566,107690.0,107680.0,0.04371]
[1762161593845,0.38466566,107690.0,107680.0,0.04371]
[1762161594045,0.38566566,107690.0,107680.0,0.04371]
[1762161594248,0.15533701,107690.0,107680.0,0.04371]
[1762161594438,0.47669701,107690.0,107680.0,0.04371]
[1762161594635,0.47669701,107690.0,107680.0,0.02225]
[1762161595252,0.05824,107680.0,107670.0,0.4973974]
[1762161595448,0.14923135,107680.0,107670.0,0.4973974]
[1762161596350,0.06324,107680.0,107670.0,0.4973974]
[1762161596546,0.00110566,107690.0,107670.0,1.0082301]
[1762161596752,0.36648,107710.0,107700.0,0.1430255]
[1762161596955,0.04512,107710.0,107700.0,0.59481685]
[1762161597345,0.36648,107710.0,107700.0,0.59481685]
[1762161597844,0.36652375,107710.0,107700.0,0.59481685]
[1762161598748,0.37964375,107710.0,107700.0,0.5038255]
[1762161599050,0.4706351,107710.0,107700.0,0.4973755]
[1762161599551,0.4766351,107710.0,107700.0,0.5003755]
[1762161601755,0.4766351,107710.0,107700.0,0.40751]
[1762161602150,0.86079494,107710.0,107700.0,0.003]
[1762161602839,0.86079494,107710.0,107680.0,0.3608]
[1762161603051,0.14923135,107690.0,107680.0,0.40451]
[1762161603239,0.4706351,107690.0,107680.0,0.40451]
[1762161604348,0.37964375,107690.0,107680.0,0.40451]
[1762161604943,0.37964375,107690.0,107680.0,0.4973927]
[1762161605549,0.37964375,107690.0,107680.0,0.40451]
[1762161605749,0.38064375,107690.0,107680.0,0.4983927]
[1762161606151,0.38064375,107690.0,107680.0,0.40551]
[1762161606342,0.38064375,107690.0,107680.0,0.40451]
[1762161606546,0.38564375,107690.0,107680.0,0.40451]
[1762161607855,0.38564375,107690.0,107680.0,0.4973927]
[1762161608455,0.38564375,107690.0,107680.0,0.38305]
[1762161608658,0.38564375,107690.0,107680.0,0.02225]
[1762161608952,0.38564375,107690.0,107680.0,0.04371]
[1762161609351,0.05824,107680.0,107670.0,0.40451]
[1762161609554,0.24924187,107680.0,107670.0,0.4974018]
[1762161609761,0.05824,107680.0,107670.0,0.4974018]
[1762161611558,0.06424,107680.0,107670.0,0.40551]
[1762161611952,0.06424,107680.0,107670.0,0.04471]
[1762161612152,0.25524187,107680.0,107670.0,0.04471]
[1762161612354,0.17821957,107680.0,107670.0,0.1376013]
[1762161612559,0.06424,107680.0,107670.0,0.1505113]
[1762161612856,0.06424,107680.0,107670.0,0.5122113]
[1762161613061,0.3856,107680.0,107670.0,0.40551]
[1762161613557,0.49957957,107680.0,107670.0,0.40551]
[1762161614262,0.49957957,107680.0,107670.0,0.4984012]
[1762161615862,0.49957957,107680.0,107670.0,0.4984013]
[1762161616463,0.3856,107680.0,107670.0,0.4984013]
[1762161616656,0.06424,107680.0,107670.0,0.4984013]
[1762161616857,0.3856,107680.0,107670.0,0.40551]
[1762161617562,0.86037957,107680.0,107670.0,0.04471]
[1762161619258,0.85537957,107680.0,107670.0,0.04371]
[1762161619458,0.85937957,107680.0,107670.0,0.04471]
[1762161619667,0.85837957,107680.0,107670.0,0.04471]
[1762161619971,0.85937957,107680.0,107670.0,0.04471]
[1762161620164,0.88279748,107680.0,107670.0,0.04471]
[1762161623866,0.88279748,107680.0,107670.0,0.1376014]
[1762161624253,0.88279748,107680.0,107670.0,0.04471]
[1762161624764,0.88283748,107680.0,107670.0,0.04471]
[1762161625567,0.88283748,107680.0,107670.0,0.001]
[1762161626068,0.88283748,107680.0,107670.0,0.02343]
[1762161626366,0.95122993,107680.0,107670.0,0.02343]
[1762161627063,0.95122993,107680.0,107670.0,0.001]
[1762161627769,1.04241594,107680.0,107670.0,0.001]
[1762161628269,1.06747476,107680.0,107670.0,0.001]
[1762161628468,0.97628875,107680.0,107670.0,0.001]
[1762161629671,1.00957158,107680.0,107670.0,0.001]
[1762161630165,0.05774,107670.0,107660.0,0.04884975]
[1762161630362,0.17238767,107670.0,107660.0,0.04884975]
[1762161630962,0.17238767,107670.0,107660.0,0.02559975]
[1762161631165,0.62437368,107670.0,107660.0,0.04884975]
[1762161631469,0.6544325,107670.0,107660.0,0.00316975]
[1762161631668,0.6554325,107670.0,107660.0,0.00316975]
[1762161632064,0.04483,107640.0,107630.0,0.05907]
[1762161632266,0.45777601,107640.0,107630.0,0.24318201]
[1762161632471,0.13601601,107640.0,107630.0,0.24318201]
[1762161632671,0.45777601,107640.0,107630.0,0.24318201]
[1762161632872,0.45777601,107640.0,107630.0,0.15025601]
[1762161633068,0.45777601,107640.0,107630.0,0.05907]
[1762161633069,0.45786442,107640.0,107630.0,0.05907]
[1762161633270,0.58630575,107640.0,107630.0,0.04568]
[1762161633464,0.56796043,107640.0,107630.0,0.04568]
[1762161633669,0.55505043,107640.0,107630.0,0.05907]
[1762161633861,0.5657508,107640.0,107630.0,0.05907]
[1762161634062,0.5786608,107640.0,107630.0,0.05907]
[1762161634267,0.5786608,107640.0,107630.0,0.04568]
[1762161634575,0.2569008,107640.0,107630.0,0.04568]
[1762161634763,0.5787008,107640.0,107630.0,0.04568]
[1762161634967,0.5787008,107640.0,107620.0,0.0030662]
[1762161634968,0.05774,107630.0,107620.0,0.0030662]
[1762161635178,0.60091202,107630.0,107620.0,0.0030662]
[1762161636068,0.41863987,107630.0,107620.0,0.0254962]
[1762161636269,0.41863987,107630.0,107620.0,0.0030662]
[1762161636468,0.60201189,107630.0,107620.0,0.0254962]
[1762161636674,0.60701189,107630.0,107620.0,0.0254962]
[1762161636875,0.60701189,107630.0,107620.0,0.0030662]
[1762161637077,0.60701189,107630.0,107620.0,0.0254962]
[1762161638077,0.60701189,107630.0,107620.0,0.0030662]
[1762161638781,0.04483,107610.0,107600.0,0.05907]
[1762161638970,0.45818924,107610.0,107600.0,0.05907]
[1762161639166,0.46164924,107610.0,107600.0,0.02243]
[1762161639370,0.37046323,107610.0,107600.0,0.05907]
[1762161639566,0.81898924,107610.0,107600.0,0.05907]
[1762161639778,0.72780323,107610.0,107600.0,0.05907]
[1762161639978,0.81898924,107610.0,107600.0,0.05907]
[1762161640275,0.05774,107600.0,107590.0,0.44942006]
[1762161640471,0.04483,107590.0,107580.0,0.42303196]
[1762161640775,0.45829241,107590.0,107580.0,0.48922202]
[1762161641378,0.47120241,107590.0,107580.0,0.40964196]
[1762161641579,0.48164219,107590.0,107580.0,0.40964196]
[1762161641771,0.48264219,107590.0,107580.0,0.04884196]
[1762161641971,0.5738282,107590.0,107580.0,0.04620196]
[1762161642477,0.9346282,107590.0,107580.0,0.00316196]
[1762161642775,0.9396282,107590.0,107580.0,0.00316196]
[1762161643163,0.9396282,107590.0,107560.0,0.44038006]
[1762161643366,0.22639202,107570.0,107560.0,0.12262006]
[1762161643567,0.45748601,107570.0,107560.0,0.12262006]
[1762161643771,0.45748601,107570.0,107560.0,0.05643]
[1762161643974,0.45748601,107570.0,107560.0,0.12262006]
[1762161644175,0.5522213,107570.0,107560.0,0.10923006]
[1762161644376,0.05693,107560.0,107550.0,0.10923006]
[1762161644574,0.02890209,107560.0,107550.0,0.12244006]
[1762161644975,0.00677209,107560.0,107550.0,0.57623496]
[1762161645177,0.35122209,107560.0,107550.0,0.48324006]
[1762161645782,0.35122209,107560.0,107550.0,0.5100449]
[1762161645980,0.35222209,107560.0,107550.0,0.5100449]
[1762161646179,0.03490209,107560.0,107550.0,0.5100449]
[1762161646381,0.35774209,107560.0,107550.0,0.5100449]
[1762161647379,0.35774209,107560.0,107550.0,0.41705]
[1762161648183,0.35774209,107560.0,107550.0,0.5100449]
[1762161648880,0.35770209,107560.0,107550.0,0.5100449]
[1762161649183,0.03490209,107560.0,107550.0,0.5100449]
[1762161649382,0.03490209,107560.0,107550.0,0.41705]
[1762161649585,0.03490209,107560.0,107550.0,0.5100449]
[1762161649777,0.35766209,107560.0,107550.0,0.5100449]
[1762161650481,0.006,107560.0,107550.0,0.62427513]
[1762161651680,8.928e-05,107570.0,107560.0,0.1492362]
[1762161651880,0.03232978,107590.0,107580.0,0.03522]
[1762161652178,0.36686,107590.0,107580.0,0.5100189]
[1762161652583,0.37719555,107590.0,107580.0,0.5100189]
[1762161652888,0.37728385,107590.0,107580.0,0.5100189]
[1762161653089,0.38028385,107590.0,107580.0,0.5100189]
[1762161653589,0.05744385,107590.0,107580.0,0.5100189]
[1762161653890,0.38028385,107590.0,107580.0,0.5100189]
[1762161654485,0.33626385,107590.0,107580.0,0.5100189]
[1762161654792,0.01342385,107590.0,107580.0,0.62424913]
[1762161655092,0.01742385,107590.0,107580.0,0.62724913]
[1762161655293,0.0070883,107590.0,107580.0,0.62724913]
[1762161655791,0.0070883,107590.0,107580.0,0.42005]
[1762161655987,0.0511083,107590.0,107580.0,0.513019]
[1762161656185,0.0511083,107590.0,107580.0,0.42005]
[1762161656385,0.0511083,107590.0,107580.0,0.513019]
[1762161656588,0.0289783,107590.0,107580.0,0.513019]
[1762161656783,0.43703023,107600.0,107580.0,0.513019]
[1762161656784,0.3608,107610.0,107580.0,0.98804923]
[1762161656982,0.3608,107610.0,107600.0,0.05625]
[1762161656983,0.06720445,107610.0,107600.0,0.05625]
[1762161657185,0.38996445,107610.0,107600.0,0.05625]
[1762161657381,0.06720445,107610.0,107600.0,0.1492017]
[1762161657586,0.38996445,107610.0,107600.0,0.5100017]
[1762161657988,0.38998993,107610.0,107600.0,0.5100017]
[1762161658387,0.39698993,107610.0,107600.0,0.5100017]
[1762161658588,0.39698993,107610.0,107600.0,0.41705]
[1762161658789,0.39898993,107610.0,107600.0,0.42005]
[1762161658992,0.40970125,107610.0,107600.0,0.5130016]
[1762161659190,0.40870125,107610.0,107600.0,0.5210016]
[1762161659790,0.40770125,107610.0,107600.0,0.5190016]
[1762161659985,0.40570125,107610.0,107600.0,0.5170016]
[1762161661189,0.08298125,107610.0,107600.0,0.5170016]
[1762161661392,0.36160125,107610.0,107600.0,0.5170016]
[1762161661593,0.36156125,107610.0,107600.0,0.5170016]
[1762161661787,0.38345125,107610.0,107600.0,0.5170016]
[1762161661996,0.40558125,107610.0,107600.0,0.5170016]
[1762161662588,0.43064007,107610.0,107600.0,0.5170016]
[1762161662992,0.40558125,107610.0,107600.0,0.5170016]
[1762161663395,0.43064007,107610.0,107600.0,0.5170016]
[1762161663698,0.38662007,107610.0,107600.0,0.5170016]
[1762161663901,0.08317661,107620.0,107610.0,0.092943]
[1762161664090,0.08317661,107630.0,107620.0,0.1472544]
[1762161664290,0.36891509,107640.0,107630.0,0.114936]
[1762161664499,0.39104509,107640.0,107630.0,0.509976]
[1762161664899,0.39104509,107640.0,107630.0,0.41705]
[1762161665099,0.06840509,107640.0,107630.0,0.40384]
[1762161665301,0.39104509,107640.0,107630.0,0.4967663]
[1762161665602,0.06840509,107640.0,107630.0,0.40384]
[1762161665988,0.07040509,107640.0,107630.0,0.40984]
[1762161666190,0.39300509,107640.0,107630.0,0.40984]
[1762161666392,0.39900509,107640.0,107630.0,0.5147657]
[1762161666895,0.39900509,107640.0,107630.0,0.42184]
[1762161667096,0.39900509,107640.0,107630.0,0.40081]
[1762161667296,0.98826555,107640.0,107630.0,0.018]
[1762161667497,1.22054555,107640.0,107630.0,0.018]
[1762161667701,0.05659,107620.0,107610.0,0.40384]
[1762161667890,0.49342023,107620.0,107610.0,0.40384]
[1762161668701,0.49642023,107620.0,107610.0,0.40884]
[1762161669499,0.49742023,107620.0,107610.0,0.40984]
[1762161670100,0.49742023,107620.0,107610.0,0.38881]
[1762161671597,0.49742023,107620.0,107610.0,0.40984]
[1762161671908,0.49742023,107620.0,107610.0,0.502783]
[1762161672399,0.38319,107620.0,107610.0,0.502783]
[1762161672801,0.38319,107620.0,107610.0,0.40984]
[1762161673305,0.74399,107620.0,107610.0,0.04904]
[1762161675405,0.93524182,107620.0,107610.0,0.006]
[1762161675997,0.95788281,107620.0,107610.0,0.006]
[1762161676500,0.76663099,107620.0,107610.0,0.05037]
[1762161676701,0.76663099,107620.0,107610.0,0.5171229]
[1762161676702,0.04853099,107620.0,107610.0,0.5171229]
[1762161676903,0.34829,107620.0,107610.0,0.5171229]
[1762161677206,0.37024,107620.0,107610.0,0.5171229]
[1762161677601,0.39287362,107620.0,107610.0,0.5171229]
[1762161677807,0.37024,107620.0,107610.0,0.5171229]
[1762161678510,0.59700292,107620.0,107610.0,0.38968]
[1762161678720,0.95780292,107620.0,107610.0,0.006]
[1762161679002,0.05015,107600.0,107590.0,0.40517]
[1762161679208,0.92460182,107600.0,107590.0,0.04437]
[1762161679402,0.94724597,107600.0,107590.0,0.04437]
[1762161679599,0.94724597,107600.0,107580.0,0.37281419]
[1762161679806,0.64127012,107590.0,107580.0,0.00011419]
[1762161680104,0.66391427,107590.0,107580.0,0.00011419]
[1762161681311,0.09898245,107590.0,107580.0,0.05749419]
[1762161681510,0.07860415,107590.0,107580.0,0.41829419]
[1762161681711,0.08260415,107590.0,107580.0,0.41829419]
[1762161681906,0.08260415,107590.0,107580.0,0.04448419]
[1762161682212,0.44740415,107590.0,107580.0,0.04748419]
[1762161682404,0.90427427,107590.0,107580.0,0.00311419]
[1762161682604,0.67191427,107590.0,107580.0,0.00311419]
[1762161682910,0.74786184,107590.0,107580.0,0.00311419]
[1762161683111,0.75686184,107590.0,107580.0,0.00011419]
[1762161683503,0.72360354,107590.0,107580.0,0.00011419]
[1762161685115,0.04308,107560.0,107550.0,0.41818]
[1762161685315,0.36584,107560.0,107550.0,0.41818]
[1762161685906,0.36590576,107560.0,107550.0,0.5111749]
[1762161686103,0.36590576,107560.0,107550.0,0.41818]
[1762161686306,0.36990576,107560.0,107550.0,0.42118]
[1762161686611,0.36990576,107560.0,107550.0,0.5141748]
[1762161686805,0.32682576,107560.0,107550.0,0.5141748]
[1762161687213,0.38174411,107560.0,107550.0,0.42118]
[1762161687712,0.37263576,107560.0,107550.0,0.5141749]
[1762161688018,0.38305321,107560.0,107550.0,0.42118]
[1762161688209,0.38305321,107560.0,107550.0,0.5141749]
[1762161689012,0.04987576,107560.0,107550.0,0.5141749]
[1762161689216,0.37255576,107560.0,107550.0,0.5141749]
[1762161690316,0.38277842,107560.0,107550.0,0.5141749]
[1762161691415,0.37873842,107560.0,107550.0,0.5111749]
[1762161691721,0.38773842,107560.0,107550.0,0.5151749]
[1762161692220,0.37751576,107560.0,107550.0,0.5151749]
[1762161693327,0.33270576,107560.0,107550.0,0.70642672]
[1762161693525,0.33270576,107560.0,107550.0,0.5151749]
[1762161693827,0.01006576,107560.0,107550.0,0.5151749]
[1762161696315,0.05487576,107560.0,107550.0,0.42218]
[1762161696717,0.05487576,107560.0,107550.0,0.5151748]
[1762161701421,0.03304576,107560.0,107550.0,0.5151748]
[1762161701923,0.05487576,107560.0,107550.0,0.42218]
[1762161702117,0.05487576,107560.0,107550.0,0.5151749]
[1762161702321,0.24612758,107560.0,107550.0,0.42218]
[1762161702623,0.06761576,107560.0,107550.0,0.42218]
[1762161703418,0.05825,107550.0,107540.0,0.02430848]
[1762161703612,0.93270182,107550.0,107540.0,0.00306848]
[1762161704220,1.00565764,107550.0,107540.0,0.00306848]
[1762161704618,1.00565764,107550.0,107540.0,0.00506848]
[1762161704918,1.01465764,107550.0,107540.0,0.00506848]
[1762161705318,0.94170182,107550.0,107540.0,0.00506848]
[1762161705619,0.94170182,107550.0,107540.0,0.04941848]
[1762161706224,0.61930182,107550.0,107540.0,0.04941848]
[1762161706425,0.42805,107550.0,107540.0,0.04941848]
[1762161706620,0.61930182,107550.0,107540.0,0.04941848]
[1762161706824,0.94178182,107550.0,107540.0,0.04941848]
[1762161707725,0.94174182,107550.0,107540.0,0.04941848]
[1762161707925,1.01615556,107550.0,107540.0,0.04941848]
[1762161708719,0.69371556,107550.0,107540.0,0.04941848]
[1762161709021,1.01615556,107550.0,107540.0,0.04941848]
[1762161709225,0.69371556,107550.0,107540.0,0.04941848]
[1762161709417,1.03866971,107550.0,107540.0,0.04941848]
[1762161709618,0.69371556,107550.0,107540.0,0.04941848]
[1762161709818,0.12892374,107550.0,107540.0,0.51656218]
[1762161710023,0.45132374,107550.0,107540.0,0.42355848]
[1762161710426,0.46406374,107550.0,107540.0,0.42355848]
[1762161710626,0.46406374,107550.0,107540.0,0.06275848]
[1762161711030,0.65531556,107550.0,107540.0,0.04941848]
[1762161712130,0.65531556,107550.0,107540.0,0.00506848]
[1762161712432,0.58090182,107550.0,107540.0,0.04941848]
[1762161715829,0.58090182,107550.0,107540.0,0.14242208]
[1762161716132,0.58090182,107550.0,107540.0,0.04941848]
[1762161716733,0.38965,107550.0,107540.0,0.04941848]
[1762161717133,0.58090182,107550.0,107540.0,0.14242188]
[1762161717333,0.65602214,107550.0,107540.0,0.14242188]
[1762161717534,0.33362214,107550.0,107540.0,0.04941848]
[1762161717738,0.67845715,107550.0,107540.0,0.02630848]
[1762161717937,1.03925715,107550.0,107540.0,0.02630848]
[1762161718137,1.03925715,107550.0,107540.0,0.04941848]
[1762161718436,1.03925715,107550.0,107540.0,0.00506848]
[1762161720740,1.03925715,107550.0,107540.0,0.02630848]
[1762161720936,0.67845715,107550.0,107540.0,0.04941848]
[1762161721336,0.67845715,107550.0,107540.0,0.02630848]
[1762161721534,0.67845715,107550.0,107540.0,0.04941848]
[1762161722134,0.67845715,107550.0,107540.0,0.00506848]
[1762161722135,1.03925715,107550.0,107540.0,0.00506848]
[1762161722744,1.03947733,107550.0,107540.0,0.00506848]
[1762161724143,0.05531,107520.0,107510.0,0.41849]
[1762161724446,0.5576566,107520.0,107510.0,0.41849]
[1762161724645,0.5576566,107520.0,107510.0,0.05769]
[1762161724944,0.5576566,107520.0,107510.0,0.04435]
[1762161725239,0.04551,107510.0,107500.0,0.39855766]
[1762161725437,0.24950182,107510.0,107500.0,0.06086766]
[1762161725633,0.26002014,107510.0,107500.0,0.04752766]
[1762161726244,0.64370245,107510.0,107500.0,0.00317766]
[1762161726440,0.45245063,107510.0,107500.0,0.04752766]
[1762161726647,0.39746937,107510.0,107500.0,0.06086766]
[1762161726944,0.39746937,107510.0,107500.0,0.04752766]
[1762161727141,0.95152119,107510.0,107500.0,0.00317766]
[1762161727347,0.76026937,107510.0,107500.0,0.02441766]
[1762161727638,0.95152119,107510.0,107500.0,0.00317766]
[1762161729345,1.02711589,107510.0,107500.0,0.00317766]